bitfinex/quotes_ETHUSD_20251221
["timestamp","ask_amount","ask_price","bid_price","bid_amount"]
[1766329396178,8.233,2971.7,2971.0,0.90147309]
[1766329396482,8.233,2971.7,2971.0,3.80070241]
[1766329397257,5.7107,2971.4,2970.7,3.9]
[1766329397462,8.233,2971.1,2970.7,3.9]
[1766329397767,8.233,2971.3,2970.8,3.9]
[1766329398460,8.233,2971.3,2970.8,7.26607904]
[1766329398793,0.001,2971.9,2970.8,7.26607904]
[1766329398794,0.001,2971.9,2971.0,4.64622201]
[1766329398995,0.424,2971.8,2971.0,4.64622201]
[1766329399356,5.7107,2971.8,2971.0,4.64622201]
[1766329399556,0.425,2971.9,2971.1,0.01684693]
[1766329399766,0.001,2971.9,2971.2,3.83194714]
[1766329401695,0.001,2971.9,2971.2,0.46630689]
[1766329402695,0.001,2971.9,2971.2,3.8319223]
[1766329403701,0.001,2971.9,2971.2,7.7319223]
[1766329403867,0.001,2971.9,2971.2,4.26676923]
[1766329404068,0.001,2971.9,2971.3,0.76324972]
[1766329406201,0.001,2972.2,2971.6,4.64622201]
[1766329406398,0.001,2972.2,2971.4,3.36541697]
[1766329406399,8.1519,2972.2,2971.4,3.36541697]
[1766329406581,8.1519,2972.2,2971.4,3.3822639]
[1766329407476,8.1509,2972.1,2971.4,3.3822639]
[1766329407792,5.8029,2972.0,2971.5,0.87917356]
[1766329410291,0.001,2972.2,2971.3,0.76324972]
[1766329410598,8.1509,2972.1,2971.2,0.418]
[1766329410906,8.01175234,2972.2,2971.2,0.418]
[1766329411111,5.8029,2971.9,2971.2,0.418]
[1766329411409,8.1509,2971.8,2971.2,0.418]
[1766329411581,8.1509,2971.8,2971.2,3.78362274]
[1766329411790,8.01175234,2972.2,2971.2,4.49857005]
[1766329412025,8.01175234,2972.2,2971.2,1.13294731]
[1766329412324,8.1509,2972.1,2971.2,4.49858854]
[1766329412785,8.01175234,2972.2,2971.2,4.49858854]
[1766329413181,5.8029,2971.9,2971.2,1.13294731]
[1766329413484,5.8029,2971.9,2970.8,5.65743467]
[1766329413485,2.348,2971.3,2970.6,0.01684693]
[1766329413691,5.8029,2971.0,2970.6,0.418]
[1766329413903,2.348,2971.1,2970.3,1.01142403]
[1766329414079,5.8029,2970.6,2970.3,0.418]
[1766329414416,0.424,2970.9,2970.0,0.002]
[1766329414600,0.424,2970.9,2970.0,0.75879202]
[1766329415104,0.424,2970.9,2970.0,0.42]
[1766329415308,5.2988,2970.6,2970.0,0.42]
[1766329415507,5.2988,2970.4,2970.0,0.42]
[1766329416415,5.2988,2971.0,2970.0,3.78696874]
[1766329416582,5.2988,2971.0,2970.2,0.01684693]
[1766329416583,0.424,2971.0,2970.2,0.01684693]
[1766329416778,8.97969,2971.0,2970.2,0.01684693]
[1766329418410,8.2029,2971.0,2970.2,0.01684693]
[1766329418580,7.7779,2970.9,2970.2,3.38361958]
[1766329420725,7.7779,2970.9,2970.0,8.45006708]
[1766329420726,2.4791,2970.8,2970.0,3.80376825]
[1766329420885,2.4791,2970.8,2970.2,3.36676559]
[1766329421183,5.2988,2970.9,2970.2,3.36676559]
[1766329421911,7.7779,2970.9,2970.2,3.36676559]
[1766329422079,7.7779,2970.9,2970.2,1.1816834]
[1766329422598,7.7779,2970.9,2970.2,4.5484596]
[1766329422904,2.4791,2970.8,2970.2,4.54845971]
[1766329423305,2.4791,2970.8,2970.2,1.1816834]
[1766329423480,2.4791,2970.8,2970.2,3.36677494]
[1766329424991,2.4791,2970.8,2970.1,3.36886899]
[1766329425606,7.7779,2970.8,2970.1,3.36886899]
[1766329425813,7.7779,2970.9,2970.1,0.002]
[1766329425978,0.425,2971.0,2970.1,0.002]
[1766329426184,0.80408114,2971.0,2970.1,0.002]
[1766329426693,5.2988,2970.7,2970.1,0.002]
[1766329426901,0.80408114,2971.0,2970.1,0.002]
[1766329426902,7.7779,2970.6,2970.1,0.002]
[1766329427103,5.2988,2970.5,2970.1,0.002]
[1766329427613,4.16999468,2971.0,2970.1,0.002]
[1766329427908,4.64622201,2970.8,2970.1,0.002]
[1766329428109,2.4791,2970.4,2970.1,0.002]
[1766329428313,7.7779,2970.4,2970.1,0.002]
[1766329428482,0.425,2970.6,2970.1,0.002]
[1766329428689,7.7779,2970.4,2970.1,0.002]
[1766329429312,5.2988,2970.3,2970.0,0.002]
[1766329429513,7.7779,2970.2,2970.0,0.002]
[1766329429687,6.11909,2970.4,2970.0,0.002]
[1766329430424,8.59819,2970.4,2970.0,0.002]
[1766329431029,5.2988,2970.3,2970.0,0.002]
[1766329431320,5.2988,2970.1,2969.9,0.002]
[1766329431490,7.7779,2970.0,2969.9,0.002]
[1766329432317,2.4791,2970.0,2969.5,0.002]
[1766329432518,7.7779,2970.2,2969.5,0.002]
[1766329432726,2.4791,2970.1,2969.5,0.002]
[1766329433016,7.7779,2969.9,2969.5,0.002]
[1766329433218,5.2988,2969.8,2969.5,0.002]
[1766329433621,5.2988,2969.8,2969.1,0.002]
[1766329433622,5.2988,2969.7,2969.1,0.002]
[1766329433792,7.7779,2969.3,2969.0,0.002]
[1766329433991,0.77779,2969.6,2969.0,0.002]
[1766329434190,5.2988,2969.8,2969.0,3.37011896]
[1766329434592,5.2988,2969.8,2969.0,0.002]
[1766329434832,5.2988,2969.8,2969.1,3.36801421]
[1766329434994,5.2988,2969.8,2969.0,0.002]
[1766329434995,5.2988,2969.8,2969.0,3.37009238]
[1766329435191,2.4791,2969.8,2969.1,3.36802188]
[1766329435396,7.7779,2969.5,2969.0,0.002]
[1766329435699,7.7779,2969.4,2969.0,0.002]
[1766329436226,0.425,2969.9,2969.0,0.002]
[1766329436227,7.7779,2969.3,2969.0,0.002]
[1766329436594,3.36724514,2969.8,2969.0,0.002]
[1766329436796,2.4791,2969.4,2969.0,0.002]
[1766329437004,6.73449028,2969.8,2969.0,0.002]
[1766329437005,5.2988,2969.2,2969.0,0.002]
[1766329437220,5.54671,2969.4,2969.0,0.002]
[1766329437410,5.2988,2969.4,2969.0,0.002]
[1766329437620,7.7779,2969.3,2969.0,0.002]
[1766329438027,5.2988,2969.2,2969.0,0.002]
[1766329438229,5.2988,2969.2,2968.9,0.002]
[1766329438230,5.2988,2969.0,2968.9,0.002]
[1766329438428,5.2988,2968.7,2968.1,0.002]
[1766329438726,2.4791,2968.8,2968.1,0.002]
[1766329438913,2.4791,2968.8,2968.1,3.37113221]
[1766329439119,7.7779,2968.8,2968.3,3.37085858]
[1766329439307,7.7779,2968.8,2968.4,3.36879456]
[1766329439503,7.7779,2968.8,2968.3,3.37093055]
[1766329439709,7.7779,2968.8,2968.3,0.002]
[1766329439710,0.77779,2968.8,2968.3,0.002]
[1766329439892,0.13497712,2969.1,2968.3,0.002]
[1766329440113,7.7779,2968.8,2968.3,3.37086318]
[1766329440429,3.36742579,2969.7,2968.3,3.37092961]
[1766329440638,1.01224649,2969.3,2968.3,7.15886132]
[1766329440838,7.7779,2969.4,2968.3,7.15886132]
[1766329441056,5.2988,2970.0,2968.4,0.71588613]
[1766329441357,0.425,2969.9,2968.5,6.73740946]
[1766329441645,1.43706892,2969.9,2968.5,6.73740946]
[1766329441944,5.2988,2969.8,2968.5,6.73740946]
[1766329442116,2.4791,2969.5,2968.5,6.73740946]
[1766329442317,2.4791,2969.7,2968.6,0.74532956]
[1766329442521,7.7779,2969.4,2968.6,0.74532956]
[1766329442723,2.4791,2969.3,2968.4,3.36877597]
[1766329442928,7.7779,2968.9,2968.3,0.421]
[1766329443140,7.7779,2968.8,2968.3,0.421]
[1766329443441,7.7779,2968.8,2968.4,3.36880446]
[1766329443647,7.7779,2969.3,2968.4,3.36880446]
[1766329443848,2.4791,2968.8,2968.3,0.421]
[1766329444056,7.7779,2968.7,2968.3,0.421]
[1766329444341,5.2988,2968.7,2968.3,0.002]
[1766329444652,0.425,2969.0,2968.1,0.002]
[1766329444857,2.4791,2968.6,2968.1,0.002]
[1766329445171,1.2855655,2969.2,2968.4,0.002]
[1766329445463,7.8973,2969.4,2968.4,0.002]
[1766329445664,8.3223,2969.4,2968.4,0.421]
[1766329445971,0.425,2969.4,2968.4,0.002]
[1766329446139,2.4108,2969.0,2968.4,0.002]
[1766329446337,7.8973,2969.0,2968.4,0.4341]
[1766329446558,7.8973,2969.3,2968.4,0.002]
[1766329446765,2.4108,2969.0,2968.2,4.319]
[1766329446938,1.02899438,2969.7,2968.2,4.319]
[1766329446939,5.4865,2969.1,2968.2,0.419]
[1766329447454,2.4108,2969.2,2968.4,6.73763642]
[1766329447636,2.4108,2969.2,2968.4,7.79356945]
[1766329447839,5.4865,2969.3,2968.4,7.79356945]
[1766329448039,7.8973,2969.4,2968.4,7.79356945]
[1766329448553,7.8973,2969.4,2968.4,11.16238766]
[1766329448928,7.8973,2969.4,2968.4,7.79356945]
[1766329449131,0.425,2969.6,2968.5,0.77935695]
[1766329449364,5.4865,2969.3,2968.5,0.77935695]
[1766329449660,7.8973,2969.2,2968.6,6.7371825]
[1766329450657,0.425,2969.5,2968.6,6.7371825]
[1766329450831,5.9115,2969.5,2968.6,6.7371825]
[1766329451031,5.9115,2969.5,2968.7,0.79355395]
[1766329451232,5.4865,2969.5,2968.7,0.79355395]
[1766329451433,5.4865,2969.5,2968.8,6.73672864]
[1766329451634,1.01208257,2969.9,2968.8,6.73672864]
[1766329451834,5.9115,2969.8,2968.8,10.10509296]
[1766329452055,5.9115,2969.8,2968.9,1.08986469]
[1766329452855,7.8973,2969.7,2968.9,1.08986469]
[1766329453365,7.8973,2969.7,2968.9,1.09186469]
[1766329453570,7.8973,2969.7,2969.0,3.36813742]
[1766329453733,2.4108,2969.6,2969.0,6.73627484]
[1766329454059,7.8973,2969.6,2969.0,3.36813742]
[1766329454561,7.8973,2969.6,2969.0,6.73627484]
[1766329456235,0.425,2969.9,2969.0,7.56098879]
[1766329456574,7.8973,2969.8,2969.0,7.56098879]
[1766329459273,5.4865,2969.7,2969.0,7.56098879]
[1766329459472,7.8973,2969.7,2969.0,7.56098879]
[1766329460082,7.8973,2969.8,2969.0,7.56098879]
[1766329460880,0.001,2970.4,2969.1,0.36678547]
[1766329461182,8.3223,2970.3,2969.1,0.36678547]
[1766329461355,7.8973,2970.2,2969.1,0.36678547]
[1766329462245,7.8973,2970.2,2969.2,6.73582108]
[1766329462452,7.8973,2970.2,2969.3,1.46605729]
[1766329464382,7.8973,2970.2,2969.4,6.7353674]
[1766329465081,1.01289482,2970.4,2969.4,10.1030511]
[1766329465290,0.001,2970.4,2969.4,10.1030511]
[1766329465877,8.0246,2970.4,2969.4,10.1030511]
[1766329466065,8.0246,2970.4,2969.5,1.15691084]
[1766329466669,8.0246,2970.4,2969.6,6.73491378]
[1766329471794,2.4615,2970.1,2969.5,3.36751814]
[1766329471979,0.425,2970.1,2969.1,0.419]
[1766329472180,8.0236,2970.0,2969.1,0.419]
[1766329472374,8.0236,2969.7,2969.1,0.419]
[1766329472973,8.0236,2969.7,2969.1,3.78693278]
[1766329473170,5.5621,2969.7,2969.1,0.419]
[1766329473487,3.30636,2969.9,2969.3,3.3677469]
[1766329473682,0.886846,2969.8,2969.2,3.36791054]
[1766329473881,0.886846,2969.8,2969.2,6.73582108]
[1766329474188,8.0236,2969.9,2969.2,6.73582108]
[1766329474596,8.0236,2969.9,2969.2,3.36791054]
[1766329474890,0.419,2970.2,2969.2,6.73582108]
[1766329475069,8.1857,2970.1,2969.2,6.73582108]
[1766329476695,0.425,2970.1,2969.2,6.73582108]
[1766329476886,7.7607,2970.0,2969.2,3.36791054]
[1766329477197,0.81857,2969.9,2969.2,3.36791054]
[1766329478518,0.81957,2969.9,2969.2,6.73582108]
[1766329478700,0.81957,2969.9,2969.2,3.36791054]
[1766329479483,0.81957,2969.9,2969.2,6.73582108]
[1766329480971,8.58027,2969.9,2969.2,6.73582108]
[1766329481699,0.419,2970.2,2969.3,3.9]
[1766329481875,7.7617,2970.4,2969.2,7.45150319]
[1766329482075,7.7607,2970.3,2969.2,7.45150319]
[1766329482275,2.4234,2970.3,2969.2,7.45150319]
[1766329482475,7.7607,2970.2,2969.2,7.45150319]
[1766329482697,7.7607,2970.2,2969.4,6.7353674]
[1766329484092,7.7607,2970.2,2969.6,3.36745689]
[1766329484287,5.3373,2970.1,2969.6,3.36745689]
[1766329485402,7.7607,2970.1,2969.6,3.36745689]
[1766329488803,0.001,2970.3,2969.6,6.73491378]
[1766329488974,7.7617,2970.3,2969.7,0.71539138]
[1766329489181,7.7607,2970.2,2969.7,0.71539138]
[1766329490105,0.001,2970.3,2969.7,0.71539138]
[1766329490283,5.3373,2970.1,2969.3,4.25600529]
[1766329490482,7.7607,2969.8,2969.3,3.3677747]
[1766329490693,7.7607,2969.8,2969.2,3.36787083]
[1766329490694,5.3373,2969.7,2969.2,3.36787083]
[1766329490888,5.3373,2969.7,2969.3,3.36774383]
[1766329491092,2.4234,2969.8,2969.2,0.5294]
[1766329491792,2.4234,2969.8,2969.4,3.36763657]
[1766329493109,2.4234,2969.8,2969.3,3.36779712]
[1766329494103,7.7607,2969.8,2969.2,3.89728368]
[1766329494913,2.4234,2969.8,2969.2,3.89728368]
[1766329495111,2.4234,2969.8,2969.2,7.26519422]
[1766329495322,2.4234,2969.8,2969.4,3.3676837]
[1766329497188,2.4234,2969.8,2969.3,3.36975603]
[1766329499314,7.7607,2969.8,2969.3,3.36975603]
[1766329499517,7.7607,2969.9,2969.3,0.002]
[1766329499689,7.7607,2969.8,2969.3,0.002]
[1766329502910,0.81857,2969.9,2969.3,0.002]
[1766329503116,5.3373,2969.7,2969.3,0.002]
[1766329504819,7.7607,2969.4,2969.1,0.002]
[1766329505394,7.7607,2969.4,2969.3,0.002]
[1766329505922,2.3025,2969.6,2969.3,0.002]
[1766329506218,3.38464418,2970.2,2969.3,0.002]
[1766329506219,2.3035,2970.2,2969.5,2.244]
[1766329506399,5.692,2970.0,2969.3,0.002]
[1766329506598,2.3025,2969.7,2969.3,0.002]
[1766329506898,5.692,2969.7,2969.3,0.002]
[1766329507103,0.425,2970.1,2969.3,0.002]
[1766329507104,7.9945,2969.6,2969.3,0.002]
[1766329507717,5.692,2969.8,2969.1,0.002]
[1766329508022,7.9945,2969.5,2969.1,0.002]
[1766329508422,3.36705817,2970.0,2969.1,0.002]
[1766329508724,5.692,2969.9,2969.1,0.002]
[1766329508917,5.692,2969.7,2969.1,0.002]
[1766329509120,7.9945,2969.5,2969.1,0.002]
[1766329509619,5.692,2969.9,2969.1,0.002]
[1766329509822,2.3025,2969.6,2969.1,0.002]
[1766329510127,7.9945,2969.5,2969.1,0.002]
[1766329510639,7.98776429,2969.5,2969.1,0.002]
[1766329512833,5.692,2969.5,2969.1,0.002]
[1766329512996,2.3025,2969.4,2969.1,0.002]
[1766329513530,7.9945,2969.4,2969.1,0.002]
[1766329514229,7.9945,2969.4,2969.0,0.002]
[1766329514430,7.9945,2969.6,2969.0,0.002]
[1766329514633,5.692,2969.2,2968.9,0.002]
[1766329514926,7.9945,2969.1,2968.9,0.002]
[1766329515509,7.9945,2969.1,2969.0,0.002]
[1766329515692,0.001,2969.5,2969.0,0.002]
[1766329515897,7.9945,2969.4,2969.0,0.002]
[1766329517423,5.692,2969.4,2969.0,0.002]
[1766329517613,0.5693,2969.4,2969.0,0.002]
[1766329517930,0.001,2969.5,2968.6,0.42]
[1766329517931,7.9945,2969.1,2968.6,0.42]
[1766329518111,0.426,2969.3,2968.6,0.42]
[1766329518428,7.9945,2969.1,2968.3,3.78884825]
[1766329518622,7.9945,2969.2,2968.3,6.09234825]
[1766329518830,2.3025,2969.1,2968.3,6.09234825]
[1766329519026,7.9945,2968.9,2968.3,2.7235]
[1766329519232,0.27285,2969.1,2968.3,0.42]
[1766329519530,2.3025,2969.0,2968.3,0.42]
[1766329520502,2.3025,2968.8,2968.3,3.78890229]
[1766329520718,7.9945,2968.8,2968.3,3.78890229]
[1766329520926,8.02090735,2969.5,2968.4,2.9219]
[1766329520927,0.001,2969.5,2968.4,2.9219]
[1766329521227,0.001,2969.5,2968.3,7.157834]
[1766329521228,7.9945,2969.3,2968.7,2.3157]
[1766329521412,8.83665,2969.3,2968.7,2.3157]
[1766329521611,7.9945,2969.2,2968.4,4.65229267]
[1766329521821,5.692,2969.2,2968.3,14.73442667]
[1766329522027,0.84215,2969.3,2968.3,11.81012667]
[1766329522028,7.9945,2969.1,2968.3,11.81012667]
[1766329522237,7.9945,2969.1,2968.4,2.9266]
[1766329522531,7.9945,2969.1,2968.4,3.87902052]
[1766329522729,7.9945,2969.1,2968.5,3.36870473]
[1766329522941,7.9945,2969.2,2968.6,2.9266]
[1766329523101,5.692,2969.2,2968.5,3.36870473]
[1766329523303,7.9945,2969.1,2968.5,3.36870473]
[1766329524600,0.001,2969.5,2968.5,12.25884678]
[1766329524837,0.001,2969.1,2968.7,6.29967778]
[1766329525141,0.001,2969.1,2968.6,6.30196595]
[1766329527418,7.8387,2969.1,2968.6,6.30196595]
[1766329528848,7.8387,2969.1,2968.5,6.58408476]
[1766329529035,7.8387,2969.1,2968.6,0.79524505]
[1766329529626,0.001,2969.1,2968.4,4.32119479]
[1766329529834,7.8377,2969.0,2968.4,4.32119479]
[1766329530420,2.4885,2968.9,2968.4,4.32119479]
[1766329532260,7.8377,2968.9,2968.4,4.32119479]
[1766329533053,7.8377,2968.9,2968.4,7.27239479]
[1766329533558,0.001,2969.0,2968.4,7.27239479]
[1766329533866,7.8387,2969.0,2968.4,6.31997427]
[1766329534025,7.8387,2969.0,2968.4,3.36877427]
[1766329534225,7.8387,2969.0,2968.5,2.9548]
[1766329535470,7.8387,2969.0,2968.4,3.36877427]
[1766329535671,7.8387,2969.0,2968.4,6.32887427]
[1766329535884,7.8387,2969.0,2968.4,2.9601]
[1766329536693,2.4881,2968.9,2968.4,6.32891625]
[1766329537284,8.1894,2968.9,2968.4,3.36881625]
[1766329537470,5.7013,2968.9,2968.3,6.75448681]
[1766329537664,0.57033,2968.9,2968.3,0.422]
[1766329537884,8.1894,2968.7,2968.3,0.422]
[1766329538389,8.1894,2968.7,2968.3,3.79092195]
[1766329539888,8.1894,2968.7,2968.3,0.422]
[1766329540592,0.427,2969.0,2968.3,0.422]
[1766329541126,2.4881,2968.8,2968.3,0.422]
[1766329541259,8.1894,2968.6,2968.3,0.422]
[1766329541457,8.1894,2968.6,2968.3,3.37090524]
[1766329541680,8.1894,2968.6,2968.3,0.002]
[1766329543263,2.4881,2968.6,2968.3,0.002]
[1766329543605,8.1894,2968.8,2968.3,0.002]
[1766329543780,9.05104,2968.8,2968.3,0.002]
[1766329544372,0.426,2968.9,2968.3,2.9763]
[1766329544685,0.426,2968.9,2968.4,2.9743]
[1766329545994,0.426,2968.9,2968.4,6.3430187]
[1766329546698,0.426,2968.9,2968.4,9.71183691]
[1766329546866,0.426,2968.9,2968.4,7.30903691]
[1766329547073,0.426,2968.9,2968.5,2.4087]
[1766329547601,0.001,2969.0,2968.5,2.4087]
[1766329547819,0.001,2969.5,2968.8,7.62959267]
[1766329547987,0.001,2969.5,2968.9,2.9773]
[1766329548305,8.1904,2969.5,2968.9,6.34544472]
[1766329548609,0.001,2969.0,2968.9,6.34544472]
[1766329548808,0.001,2969.0,2968.9,7.35882645]
[1766329550199,0.001,2969.0,2968.9,4.38163259]
[1766329550381,0.001,2969.0,2968.9,1.01338173]
[1766329550581,0.001,2969.0,2968.9,3.36825086]
[1766329550985,8.1894,2969.4,2968.9,5.78745086]
[1766329553640,3.5833151,2970.5,2968.9,5.78745086]
[1766329553641,0.001,2970.2,2969.1,2.3023]
[1766329553915,0.426,2970.1,2969.1,7.5229]
[1766329554117,0.426,2970.1,2969.2,0.75229]
[1766329554278,0.426,2970.1,2969.2,5.2206]
[1766329554481,0.426,2970.1,2969.2,7.6632]
[1766329555111,0.426,2970.1,2969.2,11.0310123]
[1766329555308,4.65094891,2970.0,2969.2,3.3678123]
[1766329555512,5.1587438,2970.0,2969.2,3.3678123]
[1766329555725,2.4881,2969.8,2969.2,3.3678123]
[1766329555909,8.6154,2969.7,2969.2,3.3678123]
[1766329556212,8.1894,2969.9,2969.3,5.2206]
[1766329556387,0.426,2969.6,2969.4,1.19563228]
[1766329557502,0.426,2969.6,2969.4,4.56329082]
[1766329561031,0.426,2969.6,2969.4,1.19563228]
[1766329561330,0.426,2969.6,2969.3,3.36776648]
[1766329562030,0.426,2969.6,2969.2,8.58848021]
[1766329562594,0.426,2969.6,2969.2,7.6632]
[1766329562793,0.426,2969.6,2969.4,3.36766835]
[1766329563203,0.001,2970.2,2969.5,5.2206]
[1766329563406,2.4881,2969.9,2969.3,8.58839712]
[1766329563626,8.1894,2969.9,2969.4,1.19562808]
[1766329564698,5.7013,2969.9,2969.4,1.19562808]
[1766329564899,8.1894,2969.9,2969.4,1.19562808]
[1766329565121,0.001,2969.6,2969.4,1.19562808]
[1766329565324,0.001,2969.6,2969.5,1.22266252]
[1766329565619,0.427,2969.6,2969.5,1.22266252]
[1766329566623,0.001,2969.6,2969.5,1.22266252]
[1766329566790,0.427,2969.6,2969.5,1.22266252]
[1766329567594,0.427,2969.6,2969.4,8.68891719]
[1766329568818,0.427,2969.6,2969.4,5.3213]
[1766329569016,0.427,2969.6,2969.4,11.17700414]
[1766329569220,0.001,2970.2,2969.7,7.8094]
[1766329569537,0.426,2970.1,2969.8,0.78094]
[1766329570195,0.001,2970.4,2969.8,0.78094]
[1766329570395,0.36528903,2970.3,2970.0,5.3213]
[1766329570624,0.426,2970.2,2969.8,8.67534]
[1766329570843,0.426,2970.1,2969.9,0.867534]
[1766329571537,0.001,2970.7,2969.9,10.96883687]
[1766329571834,0.001,2971.1,2970.7,5.3213]
[1766329572010,0.001,2971.1,2970.7,7.8944]
[1766329572417,0.001,2971.1,2970.8,5.3213]
[1766329572621,0.427,2971.4,2970.8,7.8944]
[1766329572835,8.6966,2971.4,2970.8,7.8944]
[1766329573747,8.6966,2971.4,2970.8,2.5731]
[1766329574053,8.2706,2971.4,2970.9,5.3213]
[1766329575142,0.001,2971.1,2970.9,5.3213]
[1766329575525,0.001,2971.1,2970.8,2.5731]
[1766329577553,0.001,2971.1,2970.7,5.3213]
[1766329578362,0.001,2971.1,2970.7,7.8944]
[1766329580052,0.001,2971.1,2970.8,5.3213]
[1766329580828,0.001,2971.1,2970.1,3.36681205]
[1766329580829,1.25406,2971.1,2970.1,3.36681205]
[1766329581057,2.4388,2970.8,2970.2,5.7413]
[1766329581362,8.2696,2970.8,2970.2,11.68110822]
[1766329583337,8.2696,2970.8,2970.2,6.35980822]
[1766329583685,8.2696,2970.8,2970.3,5.3213]
[1766329584864,9.28112975,2971.0,2970.3,7.8944]
[1766329585077,2.4388,2970.9,2970.3,7.8944]
[1766329585460,8.2696,2970.9,2970.3,7.8944]
[1766329590780,2.4388,2970.8,2970.3,7.8944]
[1766329590996,6.2568,2970.7,2970.0,3.36697346]
[1766329591229,8.2696,2970.6,2970.0,11.26137346]
[1766329591375,8.2696,2970.6,2970.1,8.4055]
[1766329591983,8.2696,2970.6,2970.1,11.772361]
[1766329592871,8.2696,2970.6,2970.1,8.4055]
[1766329594152,8.2696,2970.6,2970.1,11.77238733]
[1766329594779,8.2696,2970.6,2970.1,8.4055]
[1766329595373,8.2696,2970.6,2970.1,11.77236671]
[1766329595892,8.2696,2970.6,2970.1,8.4055]
[1766329596263,8.2696,2970.6,2970.2,5.8633]
[1766329596490,0.426,2970.7,2970.2,5.8633]
[1766329596695,0.426,2970.7,2970.2,8.2538]
[1766329596899,2.8407,2970.7,2970.2,8.2538]
[1766329598196,8.722,2970.7,2970.2,8.2538]
[1766329598710,0.426,2970.7,2970.3,8.2538]
[1766329598869,8.722,2970.7,2970.3,5.8633]
[1766329599578,9.5943,2970.7,2970.1,5.8633]
[1766329599897,2.4147,2970.6,2970.1,8.2538]
[1766329600201,2.4147,2970.6,2970.1,2.3905]
[1766329600385,2.4147,2970.6,2970.2,8.2538]
[1766329600708,8.19126619,2970.7,2970.2,8.2538]
[1766329602072,10.60596619,2970.7,2970.2,8.2538]
[1766329603606,1.01166619,2970.7,2970.2,3.36671214]
[1766329603803,0.001,2970.9,2970.5,5.8633]
[1766329603804,0.426,2970.6,2970.5,5.8633]
[1766329604108,0.426,2970.6,2970.5,8.2538]
[1766329604406,0.001,2970.9,2970.6,5.8633]
[1766329604608,0.426,2970.8,2970.6,5.8633]
[1766329605004,0.001,2970.9,2970.6,5.8633]
[1766329605208,0.426,2970.8,2970.7,5.8633]
[1766329606182,0.001,2970.9,2970.7,5.8633]
[1766329606377,0.427,2970.9,2970.7,5.8633]
[1766329606783,0.001,2971.4,2971.0,2.3905]
[1766329607091,0.001,2971.4,2971.2,5.8633]
[1766329608326,0.001,2971.4,2971.1,2.3905]
[1766329608481,0.001,2971.4,2971.0,5.8633]
[1766329609614,0.001,2971.4,2971.0,8.2538]
[1766329611187,0.001,2971.4,2971.0,0.57879449]
[1766329611521,0.001,2971.4,2971.2,8.2538]
[1766329612316,0.001,2971.4,2971.0,2.3905]
[1766329612515,0.001,2971.4,2971.0,8.2538]
[1766329613219,0.001,2971.4,2971.1,5.8633]
[1766329613399,0.001,2971.4,2971.1,7.02527119]
[1766329613601,0.001,2971.4,2971.1,9.41577119]
[1766329614421,0.001,2971.4,2971.1,8.2538]
[1766329616702,0.001,2971.4,2971.1,5.8633]
[1766329616903,0.001,2971.4,2971.0,0.002]
[1766329617105,0.001,2971.4,2971.0,5.8653]
[1766329617900,0.001,2971.4,2971.0,8.2558]
[1766329619407,0.001,2971.4,2971.1,8.2538]
[1766329621930,2.4147,2971.1,2971.0,0.002]
[1766329622237,4.64527691,2971.1,2970.3,0.421]
[1766329622446,8.296,2970.7,2970.0,0.002]
[1766329622743,8.296,2970.0,2969.5,0.421]
[1766329622903,2.4147,2970.1,2969.5,0.421]
[1766329623105,8.296,2970.0,2969.5,0.421]
[1766329623438,0.426,2970.3,2969.5,0.421]
[1766329623807,6.3073,2970.3,2969.8,0.002]
[1766329624117,2.4147,2970.2,2969.8,0.002]
[1766329624319,8.296,2970.2,2969.8,0.002]
[1766329626412,2.5823,2970.1,2969.8,0.002]
[1766329627717,0.426,2970.3,2969.8,6.0037]
[1766329627925,2.5823,2970.2,2969.8,0.002]
[1766329631019,2.5833,2970.2,2969.8,0.002]
[1766329631816,8.6094,2970.2,2969.8,0.002]
[1766329633034,2.5823,2970.1,2969.8,0.002]
[1766329633235,8.6084,2970.1,2969.8,0.002]
[1766329635022,6.0261,2970.1,2969.8,0.002]
[1766329635224,2.5823,2970.0,2969.8,0.002]
[1766329636556,6.0261,2970.1,2969.8,0.002]
[1766329637453,8.6084,2970.1,2969.8,0.002]
[1766329646362,8.6084,2970.1,2969.5,0.421]
[1766329646550,8.6094,2970.1,2969.5,10.22442]
[1766329648775,2.5833,2970.1,2969.7,6.0017]
[1766329648959,2.5833,2970.1,2969.7,8.5192]
[1766329652669,2.5833,2970.1,2969.5,1.70522]
[1766329652670,0.001,2970.1,2969.8,6.0017]
[1766329652848,0.001,2970.1,2969.8,8.5192]
[1766329653472,0.001,2970.1,2969.8,9.37112]
[1766329654052,0.001,2970.1,2969.8,0.85192]
[1766329654252,8.4,2970.1,2969.6,8.2845]
[1766329655480,8.4,2970.1,2969.6,8.2865]
[1766329656364,8.4,2970.1,2969.7,5.7811]
[1766329658375,0.001,2970.1,2969.7,5.7811]
[1766329658579,0.001,2970.1,2969.7,8.1947]
[1766329658762,0.001,2970.1,2969.7,9.574892]
[1766329661982,0.001,2970.1,2969.7,3.793792]
[1766329662276,0.001,2970.1,2969.7,9.574892]
[1766329662488,0.001,2970.2,2969.7,1.380192]
[1766329662649,2.4625,2970.9,2970.1,2.4136]
[1766329662851,2.4625,2970.5,2970.2,0.421]